fUSD/lending_fUSD_20251120
["ID","MTS","AMOUNT","RATE_DAILY","PERIOD"]
[394460061,1763597003014,527.215117,0.0003182,120]
[394460062,1763597003363,490.72,0.00013699,2]
[394460305,1763597081589,219.63,8.364e-05,2]
[394460307,1763597081646,219.63,8.804e-05,2]
[394460310,1763597081879,219.63,9.245e-05,2]
[394460312,1763597082121,219.63,9.685e-05,2]
[394460316,1763597082549,219.63,0.00010125,2]
[394460317,1763597082586,219.63,0.00010565,2]
[394460320,1763597082772,219.63,0.00011005,2]
[394460322,1763597082989,219.63,0.00011446,2]
[394460323,1763597083228,219.63,0.00011886,2]
[394460325,1763597083443,219.63,0.00012326,2]
[394460326,1763597083637,219.63,0.00012766,2]
[394460327,1763597083851,219.63,0.00013206,2]
[394460328,1763597084065,219.63,0.00013647,2]
[394460329,1763597084319,219.63,0.00014087,2]
[394460330,1763597084536,219.63,0.00014527,2]
[394460332,1763597084786,219.63,0.00014967,2]
[394460334,1763597085005,219.63,0.00015408,2]
[394460336,1763597085245,219.63,0.00015848,2]
[394460379,1763597136647,150.0,0.00042058,30]
[394460453,1763597241307,300.0,0.000172,6]
[394460454,1763597243404,600.0,0.000173,6]
[394460455,1763597245543,900.0,0.000174,6]
[394460588,1763597432257,-219.63,0.00016288,2]
[394460589,1763597432268,-300.0,0.00016392,2]
[394460590,1763597432280,-250.0,0.00016497,2]
[394460591,1763597432289,-300.0,0.00016592,2]
[394460592,1763597432299,-300.0,0.00016592,2]
[394460593,1763597432308,-250.0,0.00016706,2]
[394460594,1763597432319,-219.63,0.00016728,2]
[394460595,1763597432329,-500.0,0.00016743,2]
[394460596,1763597432338,-1852.42,0.00016794,2]
[394460597,1763597432350,-500.0,0.00016904,2]
[394460598,1763597432359,-250.0,0.00017,2]
[394460599,1763597432369,-172.36,0.00017101,2]
[394460600,1763597432379,-478.61,0.0001726,2]
[394460601,1763597432389,-484.0,0.00017397,2]
[394460602,1763597432399,-1200.0,0.000175,6]
[394460603,1763597432408,-191.15,0.00017524,2]
[394460604,1763597432418,-232.0,0.00017552,2]
[394460605,1763597432427,-1200.0,0.00017576,2]
[394460606,1763597432436,-196.66,0.00017578,2]
[394460607,1763597432445,-300.0,0.00017599,2]
[394460608,1763597432454,-300.0,0.00017599,2]
[394460609,1763597432464,-1401.66,0.000176,2]
[394460610,1763597432473,-700.83,0.000176,2]
[394460611,1763597432486,-999.99,0.000176,2]
[394460612,1763597432497,-402.2,0.000176,2]
[394460613,1763597432507,-478.61,0.000176,2]
[394460614,1763597432518,-150.99,0.000176,2]
[394460616,1763597432527,-9999.99,0.000176,2]
[394460617,1763597432537,-1500.0,0.000176,6]
[394460618,1763597432547,-222.35315505,0.00017619,2]
[394460619,1763597432556,-550.0,0.00017699,2]
[394460620,1763597432565,-1000.0,0.000177,2]
[394460621,1763597432575,-1104.991,0.000177,2]
[394460622,1763597432585,-700.83,0.000177,2]
[394460623,1763597432594,-1399.59,0.000177,2]
[394460624,1763597432604,-2351.40630612,0.000177,2]
[394460625,1763597432614,-300.0,0.000177,6]
[394460626,1763597432624,-208.45653185,0.000177,2]
[394460627,1763597432633,-2500.0,0.000177,2]
[394460628,1763597432643,-210.82491051,0.000177,2]
[394460629,1763597432652,-990.40443503,0.000177,2]
[394460630,1763597432662,-199.59465266,0.00017711,2]
[394460631,1763597432671,-990.40443497,0.00017722,2]
[394460632,1763597432681,-199.59465264,0.00017732,2]
[394460633,1763597432691,-990.40443497,0.00017744,2]
[394460634,1763597432700,-199.59465264,0.00017753,2]
[394460635,1763597432710,-990.40443497,0.00017767,2]
[394460636,1763597432719,-409.97796895,0.00017773,2]
[394460637,1763597432729,-500.0,0.00017773,2]
[394460638,1763597432739,-500.0,0.00017773,2]
[394460639,1763597432748,-492.0,0.00017773,2]
[394460640,1763597432758,-500.0,0.00017773,2]
[394460641,1763597432767,-502.08541522,0.00017773,2]
[394460642,1763597432777,-199.59465264,0.00017774,2]
[394460643,1763597432787,-1212.989,0.00017785,2]
[394460644,1763597432796,-922.142,0.00017785,2]
[394460645,1763597432806,-6492.0,0.00017785,2]
[394460646,1763597432815,-1605.0,0.00017785,2]
[394460647,1763597432825,-561.0,0.00017785,2]
[394460648,1763597432834,-990.40443497,0.00017789,2]
[394460649,1763597432843,-199.59465264,0.00017795,2]
[394460650,1763597432853,-192.52617624,0.00017799,2]
[394460651,1763597432862,-500.0,0.00017799,2]
[394460652,1763597432871,-1393.584,0.00017799,2]
[394460653,1763597432884,-160.385,0.00017799,2]
[394460654,1763597432894,-500.0,0.00017799,2]
[394460655,1763597432903,-500.0,0.00017799,2]
[394460656,1763597432913,-470.76714691,0.00017799,2]
[394460657,1763597432924,-500.0,0.00017799,2]
[394460658,1763597432934,-500.0,0.00017799,2]
[394460659,1763597432944,-500.0,0.00017799,2]
[394460660,1763597432955,-500.0,0.00017799,2]
[394460661,1763597432966,-500.0,0.00017799,2]
[394460662,1763597432976,-500.0,0.00017799,2]
[394460663,1763597432986,-500.0,0.00017799,2]
[394460664,1763597432995,-500.0,0.00017799,2]
[394460665,1763597433004,-229.09900703,0.00017799,2]
[394460666,1763597433014,-500.0,0.00017799,2]
[394460667,1763597433024,-500.0,0.00017799,2]
[394460668,1763597433033,-639.63846169,0.00017799,2]
[394460669,1763597433043,-500.0,0.00017799,2]
[394460670,1763597433053,-500.0,0.00017799,2]
[394460671,1763597433063,-500.0,0.00017799,2]
[394460672,1763597433073,-194.5394073,0.00017799,2]
[394460673,1763597433082,-500.0,0.00017799,2]
[394460674,1763597433092,-89351.94345123,0.000178,2]
[394460675,1763597433300,-89865.54279156,0.000178,2]
[394460676,1763597433312,-26247.60340184,0.000178,2]
[394460677,1763597433324,-3014.0,0.000178,2]
[394460678,1763597433335,-1841.11196642,0.000178,2]
[394460679,1763597433355,-413.00961028,0.000178,2]
[394460680,1763597434692,500.0,0.00042058,120]
[394460681,1763597434928,500.0,0.00042058,120]
[394460682,1763597435173,500.0,0.00042058,120]
[394460683,1763597435409,500.0,0.00042058,120]
[394460685,1763597435681,500.0,0.00042058,120]
[394460686,1763597435931,500.0,0.00042058,120]
[394460687,1763597436318,500.0,0.00042058,120]
[394460688,1763597436427,500.0,0.00042058,120]
[394460689,1763597437980,500.0,0.00042058,120]
[394460713,1763597438253,500.0,0.00042058,120]
[394460719,1763597438463,500.0,0.00042058,120]
[394460744,1763597438711,500.0,0.00042058,120]
[394460745,1763597438959,500.0,0.00042058,120]
[394460746,1763597439207,500.0,0.00042058,120]
[394460747,1763597439455,500.0,0.00042058,120]
[394460748,1763597439719,500.0,0.00042058,120]
[394460749,1763597439985,500.0,0.00042058,120]
[394460750,1763597440259,500.0,0.00042058,120]
[394460751,1763597440479,500.0,0.00042058,120]
[394460753,1763597440639,-638.55009835,0.000177,2]
[394460754,1763597440652,-361.44990165,0.000177,2]
[394460755,1763597440662,-23.44280008,0.00017785,2]
[394460756,1763597440761,504.9834016,0.00042058,120]
[394460765,1763597445629,-755.54319992,0.00017785,2]
[394460766,1763597445641,-3820.85680008,0.000178,2]
[394460767,1763597445657,-779.45516085,0.000178,2]
[394460771,1763597446317,-630.48934459,0.000178,2]
[394460897,1763597697445,166.66,0.00016034,2]
[394460899,1763597727188,450.0,0.00042058,30]
[394460988,1763598179904,-263.27602428,0.00016244,2]
[394460993,1763598373842,199.52,0.00013168,2]
[394460995,1763598411803,629.66268617,0.000162,5]
[394460996,1763598411827,4370.33731383,0.000162,5]
[394460997,1763598449328,-218.84,0.00016144,2]
[394460998,1763598451729,-266.399158,0.00016144,2]
[394460999,1763598510035,1604.0,0.00014999,2]
[394461000,1763598536407,-14.760842,0.00016144,2]
[394461001,1763598536430,-150.0,0.000162,2]
[394461002,1763598536452,-250.0,0.00016308,2]
[394461003,1763598536474,-150.0,0.00016332,2]
[394461004,1763598536497,-166.66,0.00016372,2]
[394461005,1763598536518,-338.57656952,0.00016438,2]
[394461006,1763598536540,-3299.85,0.00016438,2]
[394461007,1763598536561,-150.0,0.0001649,2]
[394461008,1763598536582,-200.0,0.00016622,2]
[394461009,1763598536608,-150.0,0.00016672,2]
[394461010,1763598536632,-166.66,0.00016709,2]
[394461011,1763598536654,-1000.0,0.00016758,2]
[394461012,1763598536677,-300.0,0.0001687,2]
[394461013,1763598536700,-1200.0,0.00016871,2]
[394461014,1763598536723,-463.49258848,0.00016872,2]
[394461015,1763598538088,-36.50741152,0.00016872,2]
[394461016,1763598538111,-951.41,0.00016941,2]
[394461017,1763598538132,-166.67,0.00016956,2]
[394461018,1763598538153,-6845.41258848,0.00017,2]
[394461019,1763598539474,-8000.0,0.00017,2]
[394461020,1763598540299,-8000.0,0.00017,2]
[394461021,1763598541144,-8000.0,0.00017,2]
[394461022,1763598547667,-300.0,0.00016999,2]
[394461023,1763598547689,-700.0,0.00017,2]
[394461024,1763598548518,-1000.0,0.00017,2]
[394461031,1763598617927,999.0,0.00016655,3]
[394461045,1763598632302,-304.0,0.00016627,2]
[394461046,1763598632312,-250.0,0.00016627,2]
[394461048,1763598632323,-200.0,0.00016627,2]
[394461050,1763598632332,-151.0,0.00016897,2]
[394461051,1763598632343,-421.4511873,0.00016899,2]
[394461052,1763598632369,-78.5488127,0.00016899,2]
[394461053,1763598632378,-168.71032878,0.00016899,2]
[394461054,1763598632388,-157.27930013,0.00016899,2]
[394461055,1763598632399,-271.91129923,0.00016899,2]
[394461056,1763598632417,-70.80940064,0.00016899,2]
[394461057,1763598632429,-462.7598985,0.00016899,2]
[394461058,1763598632452,-37.2401015,0.00016899,2]
[394461059,1763598632461,-500.0,0.00016899,2]
[394461060,1763598632470,-500.0,0.00016899,2]
[394461061,1763598632480,-301.90925673,0.00016899,2]
[394461062,1763598632491,-198.09074327,0.00016899,2]
[394461063,1763598632502,-500.0,0.00016899,2]
[394461064,1763598632511,-455.93215824,0.00016899,2]
[394461109,1763598640420,-44.06784176,0.00016899,2]
[394461110,1763598640429,-298.9803582,0.00016899,2]
[394461111,1763598640487,-201.0196418,0.00016899,2]
[394461112,1763598640496,-529.4644902,0.00016899,2]
[394461113,1763598640505,-500.0,0.00016899,2]
[394461114,1763598640517,-500.0,0.00016899,2]
[394461115,1763598640526,-249.33668834,0.00016899,2]
[394461116,1763598640539,-250.66331166,0.00016899,2]
[394461117,1763598640549,-716.33476897,0.000169,2]
[394461128,1763598645011,-25981.31607109,0.000169,2]
[394461129,1763598645079,-733302.34915994,0.000169,2]
[394461130,1763598645089,-300.0,0.00016999,2]
[394461131,1763598645099,-300.0,0.00016999,2]
[394461132,1763598645108,-550.0,0.00016999,2]
[394461133,1763598645118,-1200.0,0.00016999,2]
[394461134,1763598645128,-100312.9317051,0.00017,2]
[394461135,1763598645139,-160.0,0.00017,2]
[394461136,1763598645148,-166.66,0.00017047,2]
[394461137,1763598645158,-150.0,0.00017099,2]
[394461138,1763598645168,-328.42672177,0.00017099,2]
[394461139,1763598645177,-152.92,0.00017223,2]
[394461140,1763598645187,-150.99,0.00017259,2]
[394461141,1763598645205,-9999.99,0.00017259,2]
[394461142,1763598645214,-957.22,0.0001726,2]
[394461143,1763598645224,-478.61,0.0001726,2]
[394461144,1763598645235,-478.61,0.0001726,2]
[394461145,1763598645245,-478.61,0.0001726,2]
[394461146,1763598645255,-700.83,0.0001726,2]
[394461147,1763598645265,-700.83,0.0001726,2]
[394461148,1763598645285,-700.83,0.0001726,2]
[394461149,1763598645297,-700.83,0.0001726,2]
[394461150,1763598645307,-700.83,0.0001726,2]
[394461151,1763598645319,-700.83,0.0001726,2]
[394461152,1763598645329,-700.83,0.0001726,2]
[394461153,1763598645339,-700.83,0.0001726,2]
[394461154,1763598645350,-700.83,0.0001726,2]
[394461155,1763598645361,-1399.13,0.0001726,2]
[394461156,1763598645371,-500.0,0.00017288,2]
[394461157,1763598645382,-157.33,0.00017288,2]
[394461158,1763598645392,-166.66,0.00017384,2]
[394461159,1763598645403,-478.61,0.000174,2]
[394461160,1763598645414,-957.22,0.000174,2]
[394461161,1763598645424,-177.0,0.00017474,2]
[394461162,1763598645434,-222.35315505,0.00017498,2]
[394461163,1763598645444,-502.0,0.00017534,2]
[394461164,1763598645453,-2500.0,0.00017585,2]
[394461165,1763598645463,-478.61,0.000176,2]
[394461166,1763598645473,-957.22,0.000176,2]
[394461167,1763598645484,-495.20221753,0.000176,2]
[394461168,1763598645493,-174.7256865,0.000176,2]
[394461169,1763598645503,-210.8249105,0.000176,2]
[394461170,1763598645515,-166.3288772,0.000176,2]
[394461171,1763598645526,-2946.27678,0.0001762,2]
[394461172,1763598645535,-495.20221748,0.00017633,2]
[394461173,1763598645545,-205689.6577212,0.00017655,2]
[394461174,1763598645555,-166.3288772,0.0001766,2]
[394461175,1763598645564,-495.20221748,0.00017667,2]
[394461176,1763598645573,-500.0,0.00017673,2]
[394461177,1763598645583,-500.0,0.00017673,2]
[394461178,1763598645593,-500.0,0.00017673,2]
[394461179,1763598645603,-592.99610824,0.00017673,2]
[394461180,1763598645615,-239.78,0.00017675,3]
[394461181,1763598645626,-1000.0,0.000177,2]
[394461182,1763598645638,-495.20221748,0.000177,2]
[394461183,1763598645648,-166.3288772,0.0001772,2]
[394461184,1763598645662,-166.66,0.00017722,2]
[394461185,1763598645672,-495.20221748,0.00017733,2]
[394461186,1763598645681,-177.0,0.00017737,2]
[394461187,1763598645692,-495.20221748,0.00017767,2]
[394461188,1763598645703,-166.3288772,0.0001778,2]
[394461189,1763598645713,-177.0,0.00017798,2]
[394461190,1763598645723,-44860.0005744,0.00017798,2]
[394461191,1763598645735,-79778.2193839,0.00017798,2]
[394461192,1763598645745,-1561.6668325,0.00017798,2]
[394461193,1763598645754,-222.32190552,0.000178,2]
[394461194,1763598645764,-495.20221748,0.000178,2]
[394461195,1763598645773,-222.32190548,0.00017817,2]
[394461196,1763598645782,-232.0,0.00017817,2]
[394461197,1763598645792,-222.32190548,0.00017833,2]
[394461198,1763598645801,-495.20221748,0.00017833,2]
[394461199,1763598645810,-177.0,0.00017835,2]
[394461200,1763598645820,-166.3288772,0.0001784,2]
[394461201,1763598645830,-222.32190548,0.0001785,2]
[394461202,1763598645839,-1114.867,0.00017856,2]
[394461203,1763598645848,-160.386,0.00017856,2]
[394461204,1763598645857,-222.32190548,0.00017867,2]
[394461205,1763598645867,-495.20221748,0.00017867,2]
[394461206,1763598645876,-222.32190548,0.00017883,2]
[394461207,1763598645886,-25000.0,0.00017891,3]
[394461208,1763598645896,-180.78914555,0.00017899,2]
[394461209,1763598645905,-500.0,0.00017899,2]
[394461210,1763598645914,-322.80776131,0.00017899,2]
[394461211,1763598645924,-2329.0,0.000179,2]
[394461212,1763598645934,-25000.0,0.000179,3]
[394461213,1763598645944,-25000.0,0.000179,3]
[394461214,1763598645954,-8501.5664134,0.000179,3]
[394461215,1763598645964,-2351.40630611,0.000179,2]
[394461216,1763598645974,-222.32190548,0.000179,2]
[394461217,1763598645984,-495.20221748,0.000179,2]
[394461218,1763598645993,-166.3288772,0.000179,2]
[394461219,1763598646003,-845.72484322,0.000179,2]
[394461220,1763598646012,-2180.93168441,0.000179,3]
[394461221,1763598646021,-232.0,0.00017932,2]
[394461222,1763598646031,-500.0,0.00017973,2]
[394461223,1763598646040,-500.0,0.00017973,2]
[394461224,1763598646050,-500.0,0.00017973,2]
[394461225,1763598646060,-500.0,0.00017973,2]
[394461226,1763598646069,-500.0,0.00017973,2]
[394461227,1763598646079,-500.0,0.00017973,2]
[394461228,1763598646088,-529.06851033,0.00017973,2]
[394461229,1763598646098,-500.0,0.00017973,2]
[394461230,1763598646108,-500.0,0.00017973,2]
[394461231,1763598646119,-500.0,0.00017973,2]
[394461232,1763598646129,-500.0,0.00017973,2]
[394461234,1763598646138,-500.0,0.00017973,2]
[394461236,1763598646148,-500.0,0.00017973,2]
[394461237,1763598646157,-335.09506367,0.00017973,2]
[394461238,1763598646167,-500.0,0.00017973,2]
[394461239,1763598646176,-500.0,0.00017973,2]
[394461240,1763598646187,-509.90200273,0.00017973,2]
[394461241,1763598646196,-500.0,0.00017973,2]
[394461242,1763598646206,-500.96694161,0.00017973,2]
[394461243,1763598646215,-546.49659787,0.00017973,2]
[394461244,1763598646225,-491.44400652,0.00017973,2]
[394461245,1763598646235,-500.0,0.00017973,2]
[394461246,1763598646246,-500.0,0.00017973,2]
[394461247,1763598646256,-500.0,0.00017973,2]
[394461248,1763598646266,-500.0,0.00017973,2]
[394461249,1763598646275,-500.0,0.00017973,2]
[394461250,1763598646285,-500.0,0.00017973,2]
[394461251,1763598646295,-478.25879829,0.00017973,2]
[394461252,1763598646304,-500.0,0.00017973,2]
[394461253,1763598646314,-500.0,0.00017973,2]
[394461254,1763598646323,-500.0,0.00017973,2]
[394461255,1763598646333,-500.0,0.00017973,2]
[394461256,1763598646342,-500.0,0.00017973,2]
[394461257,1763598646352,-500.0,0.00017973,2]
[394461258,1763598646364,-500.0,0.00017973,2]
[394461259,1763598646374,-1568.93,0.00017973,2]
[394461260,1763598646384,-1600.0,0.0001798,2]
[394461261,1763598646393,-822.0,0.0001798,2]
[394461262,1763598646404,-1276.0,0.0001798,2]
[394461263,1763598646413,-826.532,0.0001798,2]
[394461264,1763598646423,-1191.0,0.0001798,2]
[394461265,1763598646434,-907.0,0.0001798,2]
[394461266,1763598646443,-728.443,0.0001798,2]
[394461267,1763598646453,-1605.0,0.0001798,2]
[394461268,1763598646463,-1319.0,0.0001798,2]
[394461269,1763598646473,-3433.0,0.0001798,2]
[394461270,1763598646483,-151.0,0.00017997,2]
[394461271,1763598646494,-1000.0,0.00017999,2]
[394461272,1763598646504,-5459.0879196,0.00017999,2]
[394461273,1763598646516,-300.0,0.00017999,2]
[394461274,1763598646525,-300.0,0.00017999,2]
[394461275,1763598646535,-179.31223623,0.00018,2]
[394461276,1763598646544,-326824.72149886,0.00018,2]
[394461277,1763598647124,-32.12927158,0.00016527,2]
[394461278,1763598647136,-134.5373951,0.00016527,2]
[394461279,1763598647145,-14557.41115741,0.00018,2]
[394461282,1763598659519,500.0,0.00042056,120]
[394461283,1763598659809,500.0,0.00042056,120]
[394461284,1763598660049,500.0,0.00042056,120]
[394461285,1763598660303,500.0,0.00042056,120]
[394461286,1763598660591,500.0,0.00042056,120]
[394461287,1763598660885,500.0,0.00042056,120]
[394461288,1763598661138,500.0,0.00042056,120]
[394461289,1763598661402,500.0,0.00042056,120]
[394461290,1763598661652,500.0,0.00042056,120]
[394461291,1763598661886,500.0,0.00042056,120]
[394461292,1763598662168,500.0,0.00042056,120]
[394461293,1763598662423,500.0,0.00042056,120]
[394461294,1763598662658,500.0,0.00042056,120]
[394461295,1763598662927,500.0,0.00042056,120]
[394461296,1763598663500,500.0,0.00042056,120]
[394461297,1763598663719,500.0,0.00042056,120]
[394461298,1763598663997,500.0,0.00042056,120]
[394461299,1763598664212,500.0,0.00042056,120]
[394461300,1763598664450,500.0,0.00042056,120]
[394461301,1763598664695,499.99,0.00042056,120]
[394461305,1763598780612,1171.23,0.00025695,120]
[394461329,1763598973731,150.0,0.00016855,120]
[394461352,1763599524548,-150.0,0.000162,2]
[394461353,1763599524571,-150.0,0.000162,2]
[394461354,1763599524592,-150.0,0.000162,2]
[394461355,1763599524612,-100.01215921,0.000162,2]
[394461356,1763599527908,-49.98784079,0.000162,2]
[394461357,1763599527929,-114.08092578,0.000162,2]
[394461358,1763599539449,-35.91907422,0.000162,2]
[394461359,1763599539470,-150.0,0.000162,2]
[394461360,1763599539491,-10.25092578,0.000162,2]
[394461362,1763599542765,-139.74907422,0.000162,2]
[394461363,1763599542788,-55.59351243,0.000162,2]
[394461364,1763599544752,582.61,0.00032877,120]
[394461366,1763599559859,-94.40648757,0.000162,2]
[394461367,1763599559883,-150.0,0.000162,2]
[394461368,1763599559905,-150.0,0.00016457,2]
[394461369,1763599559927,-150.0,0.00016457,2]
[394461370,1763599559947,-166.66666666,0.00016512,2]
[394461371,1763599559970,-300.0,0.00016537,2]
[394461372,1763599559992,-2179.81,0.00016549,2]
[394461373,1763599560016,-150.0,0.0001656,2]
[394461374,1763599560039,-150.0,0.0001656,2]
[394461375,1763599560062,-381.54893572,0.00016562,2]
[394461376,1763599560084,-127.56791005,0.0001661,2]
[394461377,1763599563037,-172.43208995,0.0001661,2]
[394461378,1763599563061,-303.0,0.00016612,2]
[394461379,1763599563083,-211.82,0.00016612,2]
[394461380,1763599563106,-150.0,0.0001665,2]
[394461381,1763599563127,-150.0,0.0001665,2]
[394461382,1763599563148,-378.57429444,0.00016653,2]
[394461383,1763599563170,-150.0,0.00016714,2]
[394461384,1763599563195,-150.0,0.00016714,2]
[394461385,1763599563217,-1241.0,0.00016753,2]
[394461386,1763599563240,-552.0,0.00016753,2]
[394461387,1763599563261,-378.57429442,0.00016778,2]
[394461388,1763599563283,-162.59932119,0.00016819,2]
[394461389,1763599566270,-389.40067881,0.00016819,2]
[394461390,1763599566294,-300.0,0.00016854,2]
[394461391,1763599566315,-1200.0,0.00016854,2]
[394461392,1763599566336,-150.0,0.00016855,2]
[394461393,1763599566357,-1960.59932119,0.00016855,2]
[394461394,1763599569193,-4000.0,0.00016855,2]
[394461395,1763599572148,-4000.0,0.00016855,2]
[394461397,1763599575083,-39.39067881,0.00016855,2]
[394461398,1763599575106,-1189.14,0.00016855,2]
[394461399,1763599575128,-378.57429442,0.00016902,2]
[394461400,1763599575149,-150.0,0.0001692,2]
[394461401,1763599575173,-150.0,0.0001692,2]
[394461402,1763599575200,-150.0,0.00016971,2]
[394461403,1763599575222,-150.0,0.00016971,2]
[394461404,1763599575244,-552.0,0.00016989,2]
[394461405,1763599575264,-250.0,0.00017,2]
[394461406,1763599595154,-550.0,0.00017002,2]
[394461407,1763599595177,-552.0,0.00017003,2]
[394461408,1763599595198,-2898.0,0.00017003,2]
[394461409,1763599597917,-1651.26,0.00017003,2]
[394461410,1763599597938,-2348.74,0.00017003,2]
[394461411,1763599618634,-2250.0,0.00017003,2]
[394461412,1763599713244,600.0,0.00042052,30]
[394461413,1763599739339,1650.0,0.00042052,30]
[394461420,1763599776277,466.18,0.00013699,2]
[394461447,1763599831450,-504.83378329,0.00016841,2]
[394461450,1763599831462,-4788.28429221,0.00016841,2]
[394461453,1763599831472,-308.0,0.00016841,2]
[394461455,1763599831481,-151.0,0.00016899,2]
[394461457,1763599831491,-300.0,0.00016901,2]
[394461459,1763599831501,-1200.0,0.00016901,2]
[394461461,1763599831510,-300.0,0.00016901,2]
[394461463,1763599831525,-211.31993205,0.00016902,2]
[394461464,1763599831534,-760000.0,0.00016902,2]
[394461465,1763599831544,-500.0,0.00016973,2]
[394461466,1763599831553,-1000.0,0.00017001,2]
[394461467,1763599831562,-1004.12521198,0.00017001,2]
[394461468,1763599831572,-546.0,0.00017002,2]
[394461469,1763599831581,-550.0,0.00017002,2]
[394461470,1763599831590,-39645.64,0.00017003,2]
[394461471,1763599831599,-150.99,0.00017003,2]
[394461472,1763599831608,-1833.46,0.00017003,2]
[394461473,1763599831617,-7680.32,0.00017003,2]
[394461474,1763599831627,-2377.73,0.00017003,2]
[394461475,1763599831636,-9999.99,0.00017003,2]
[394461476,1763599831645,-499.99,0.00017003,2]
[394461477,1763599831654,-2949.79,0.00017003,2]
[394461478,1763599831664,-3620.59789013,0.00017003,2]
[394461479,1763599831675,-672.80486097,0.00017003,2]
[394461480,1763599831690,-326.80002359,0.00017003,2]
[394461481,1763599831701,-313.33722531,0.00017003,2]
[394461482,1763599831710,-495.71,0.00017003,2]
[394461484,1763599831718,-1241.0,0.0001708,2]
[394461486,1763599831728,-151.0,0.00017095,2]
[394461487,1763599831737,-151.0,0.00017095,2]
[394461489,1763599831746,-151.0,0.00017095,2]
[394461491,1763599831755,-151.0,0.00017095,2]
[394461493,1763599831766,-151.0,0.00017095,2]
[394461495,1763599831775,-277.24464991,0.00017095,2]
[394461497,1763599831784,-609.30812478,0.00017099,2]
[394461500,1763599831803,-72.38187522,0.00017099,2]
[394461502,1763599831811,-150.0,0.000171,2]
[394461504,1763599831821,-150.0,0.000171,2]
[394461506,1763599831830,-150.0,0.000171,2]
[394461508,1763599831839,-1241.0,0.00017106,2]
[394461510,1763599831848,-1171.23,0.0001713,2]
[394461512,1763599831857,-552.0,0.00017223,2]
[394461514,1763599831866,-150.0,0.00017229,2]
[394461516,1763599831875,-150.0,0.00017229,2]
[394461518,1763599831884,-168.0,0.00017269,2]
[394461520,1763599831893,-150.0,0.0001728,2]
[394461522,1763599831902,-150.0,0.0001728,2]
[394461541,1763599832057,-1241.0,0.00017313,2]
[394461544,1763599832081,-229.0,0.00017315,2]
[394461546,1763599832090,-1241.0,0.00017318,2]
[394461548,1763599832104,-182.07,0.00017355,2]
[394461549,1763599832114,-211.31993203,0.00017401,2]
[394461550,1763599832123,-382.0,0.00017418,2]
[394461551,1763599832133,-500.0,0.00017452,2]
[394461552,1763599832143,-151.0,0.00017457,2]
[394461553,1763599832153,-168.0,0.00017457,2]
[394461554,1763599832162,-150.0,0.00017486,2]
[394461555,1763599832171,-150.0,0.00017486,2]
[394461556,1763599832181,-150.0,0.00017534,2]
[394461557,1763599832190,-302.22,0.00017534,2]
[394461558,1763599832199,-150.0,0.00017534,2]
[394461559,1763599832208,-300.0,0.00017534,2]
[394461560,1763599832217,-416.99,0.00017534,2]
[394461561,1763599832226,-300.0,0.00017534,2]